[Event "Live Chess"]
[Site "Chess.com"]
[Date "2011.01.28"]
[Round "-"]
[White "hipposcottimus"]
[Black "AugustoPinzone"]
[Result "1-0"]
[CurrentPosition "k2r3r/p5pp/5p2/2P5/2QbP3/5P2/P1P3PP/1R5K w - -"]
[Timezone "UTC"]
[ECO "C50"]
[ECOUrl "https://www.chess.com/openings/Italian-Game-3...d6-4.d4-exd4-5.Nxd4"]
[UTCDate "2011.01.28"]
[UTCTime "00:36:15"]
[WhiteElo "1438"]
[BlackElo "1442"]
[TimeControl "240+4"]
[Termination "hipposcottimus won by resignation"]
[StartTime "00:36:15"]
[EndDate "2011.01.28"]
[EndTime "00:39:47"]
[Link "https://www.chess.com/game/live/92092836"]

1. e4 {[%clk 0:04:00]} 1... e5 {[%clk 0:04:00]} 2. Nf3 {[%clk 0:04:02.6]} 2... Nc6 {[%clk 0:04:03.7]} 3. Bc4 {[%clk 0:04:06.3]} 3... d6 {[%clk 0:04:07.3]} 4. d4 {[%clk 0:04:09.8]} 4... exd4 {[%clk 0:04:10.1]} 5. Nxd4 {[%clk 0:04:12.6]} 5... Nxd4 {[%clk 0:04:13.8]} 6. Qxd4 {[%clk 0:04:16.3]} 6... Qf6 {[%clk 0:04:17.2]} 7. Qe3 {[%clk 0:03:55.3]} 7... Be6 {[%clk 0:04:18.9]} 8. Na3 {[%clk 0:03:55.9]} 8... O-O-O {[%clk 0:04:11.4]} 9. O-O {[%clk 0:03:59.4]} 9... Bxc4 {[%clk 0:04:14.2]} 10. Nxc4 {[%clk 0:04:01.6]} 10... b6 {[%clk 0:04:17.7]} 11. Rb1 {[%clk 0:03:57.8]} 11... Ne7 {[%clk 0:04:20.4]} 12. b3 {[%clk 0:04:01]} 12... Nc6 {[%clk 0:04:23.3]} 13. Bb2 {[%clk 0:04:04]} 13... Qg6 {[%clk 0:04:22.8]} 14. Qd2 {[%clk 0:04:07.6]} 14... Be7 {[%clk 0:04:22.9]} 15. f3 {[%clk 0:04:10.5]} 15... Bf6 {[%clk 0:04:26.3]} 16. Ba3 {[%clk 0:04:12.5]} 16... Ne5 {[%clk 0:04:20.3]} 17. Qc3 {[%clk 0:04:07.9]} 17... b5 {[%clk 0:04:11.6]} 18. Na5 {[%clk 0:04:02.7]} 18... c5 {[%clk 0:04:10.9]} 19. Bxc5 {[%clk 0:04:03.7]} 19... Nc4 {[%clk 0:04:02.7]} 20. Qb4 {[%clk 0:03:51.5]} 20... Nxa5 {[%clk 0:04:02.2]} 21. Qxa5 {[%clk 0:03:55.2]} 21... dxc5 {[%clk 0:04:05.1]} 22. Qxb5 {[%clk 0:03:58.5]} 22... Bd4+ {[%clk 0:04:04.2]} 23. Kh1 {[%clk 0:04:00.8]} 23... Qb6 {[%clk 0:04:05.7]} 24. Qc4 {[%clk 0:04:01.6]} 24... f6 {[%clk 0:04:06.3]} 25. b4 {[%clk 0:04:03.6]} 25... Kb8 {[%clk 0:04:04.8]} 26. bxc5 {[%clk 0:04:06]} 26... Qxb1 {[%clk 0:04:05.1]} 27. Rxb1+ {[%clk 0:04:09.5]} 27... Ka8 {[%clk 0:04:08.5]} 1-0

[Event "Live Chess"]
[Site "Chess.com"]
[Date "2011.01.27"]
[Round "-"]
[White "mushfiq_aliyev"]
[Black "hipposcottimus"]
[Result "0-1"]
[CurrentPosition "5Q1R/8/3r2p1/2p3k1/3p1q2/P2P1P1P/1PP2PK1/8 w - -"]
[Timezone "UTC"]
[ECO "C46"]
[ECOUrl "https://www.chess.com/openings/Three-Knights-Opening-3...d6"]
[UTCDate "2011.01.27"]
[UTCTime "23:25:15"]
[WhiteElo "1150"]
[BlackElo "1438"]
[TimeControl "600"]
[Termination "hipposcottimus won on time"]
[StartTime "23:25:15"]
[EndDate "2011.01.27"]
[EndTime "23:44:07"]
[Link "https://www.chess.com/game/live/92075293"]

1. e4 {[%clk 0:10:00]} 1... e5 {[%clk 0:10:00]} 2. Nf3 {[%clk 0:09:58]} 2... Nc6 {[%clk 0:09:59.4]} 3. Nc3 {[%clk 0:09:55.4]} 3... d6 {[%clk 0:09:43]} 4. Bb5 {[%clk 0:09:52.4]} 4... Ne7 {[%clk 0:09:36.9]} 5. d3 {[%clk 0:09:46.1]} 5... Bd7 {[%clk 0:09:34.7]} 6. Bxc6 {[%clk 0:09:42.3]} 6... Nxc6 {[%clk 0:09:33.8]} 7. h3 {[%clk 0:09:40.5]} 7... Be7 {[%clk 0:09:32.8]} 8. O-O {[%clk 0:09:38.6]} 8... f5 {[%clk 0:09:30.2]} 9. exf5 {[%clk 0:09:36.3]} 9... Bxf5 {[%clk 0:09:29.8]} 10. Be3 {[%clk 0:09:31.8]} 10... O-O {[%clk 0:09:27.7]} 11. a3 {[%clk 0:09:18.8]} 11... Bf6 {[%clk 0:09:23.5]} 12. Nd5 {[%clk 0:09:14.6]} 12... Nd4 {[%clk 0:09:13.3]} 13. Bxd4 {[%clk 0:09:07.1]} 13... exd4 {[%clk 0:09:09.7]} 14. Re1 {[%clk 0:09:02]} 14... Bg6 {[%clk 0:08:52.9]} 15. Qd2 {[%clk 0:08:40.9]} 15... c5 {[%clk 0:08:46.5]} 16. Re2 {[%clk 0:08:08.7]} 16... Bf7 {[%clk 0:08:40.6]} 17. Nxf6+ {[%clk 0:07:46.9]} 17... Qxf6 {[%clk 0:08:37.4]} 18. Rae1 {[%clk 0:07:41]} 18... Qd8 {[%clk 0:07:57.8]} 19. Qf4 {[%clk 0:07:16.1]} 19... Bh5 {[%clk 0:07:17.4]} 20. Qe4 {[%clk 0:06:47.8]} 20... Bxf3 {[%clk 0:07:13.5]} 21. gxf3 {[%clk 0:06:41.8]} 21... Qg5+ {[%clk 0:07:09.2]} 22. Qg4 {[%clk 0:06:36.1]} 22... Qd8 {[%clk 0:06:26]} 23. Re7 {[%clk 0:06:05.2]} 23... Rf7 {[%clk 0:06:14.8]} 24. Rxf7 {[%clk 0:04:45.7]} 24... Kxf7 {[%clk 0:06:11.5]} 25. Qe6+ {[%clk 0:04:43.1]} 25... Kf8 {[%clk 0:06:05.5]} 26. Re4 {[%clk 0:04:15.4]} 26... Qg5+ {[%clk 0:05:14.5]} 27. Kh2 {[%clk 0:04:06]} 27... g6 {[%clk 0:04:44.7]} 28. Qxd6+ {[%clk 0:03:47.3]} 28... Kg7 {[%clk 0:04:41.8]} 29. Qe7+ {[%clk 0:03:05.1]} 29... Kh6 {[%clk 0:04:38.5]} 30. Qxb7 {[%clk 0:02:54.6]} 30... Rf8 {[%clk 0:04:30.1]} 31. Re7 {[%clk 0:02:17.3]} 31... Qf4+ {[%clk 0:04:26.8]} 32. Kg2 {[%clk 0:01:53.6]} 32... Qg5+ {[%clk 0:04:03.9]} 33. Kh2 {[%clk 0:01:50.7]} 33... Qf4+ {[%clk 0:03:59.2]} 34. Kg2 {[%clk 0:01:49.7]} 34... Kg5 {[%clk 0:03:56.2]} 35. Rxh7 {[%clk 0:01:30.2]} 35... Qd2 {[%clk 0:03:47.7]} 36. Qd5+ {[%clk 0:01:20.8]} 36... Rf5 {[%clk 0:03:39.5]} 37. Qd8+ {[%clk 0:01:17.6]} 37... Rf6 {[%clk 0:03:36.5]} 38. Rxa7 {[%clk 0:01:08.7]} 38... Qf4 {[%clk 0:03:08.3]} 39. Qd5+ {[%clk 0:00:43.8]} 39... Rf5 {[%clk 0:02:54.5]} 40. Qd8+ {[%clk 0:00:40]} 40... Rf6 {[%clk 0:02:52.2]} 41. Qd5+ {[%clk 0:00:37.9]} 41... Rf5 {[%clk 0:02:50]} 42. Qd8+ {[%clk 0:00:36.4]} 42... Kh6 {[%clk 0:02:34.1]} 43. Qh8+ {[%clk 0:00:31.8]} 43... Kg5 {[%clk 0:02:31.5]} 44. Qd8+ {[%clk 0:00:26.5]} 44... Kh6 {[%clk 0:02:29.2]} 45. Qh8+ {[%clk 0:00:24.3]} 45... Kg5 {[%clk 0:02:28.9]} 46. Qd8+ {[%clk 0:00:23.2]} 46... Rf6 {[%clk 0:02:26.1]} 47. Qd5+ {[%clk 0:00:22.1]} 47... Kh6 {[%clk 0:02:21.5]} 48. Ra8 {[%clk 0:00:07.1]} 48... Rd6 {[%clk 0:01:47.9]} 49. Rh8+ {[%clk 0:00:03.2]} 49... Kg7 {[%clk 0:01:39.6]} 50. Qg8+ {[%clk 0:00:01.4]} 50... Kf6 {[%clk 0:01:36.9]} 51. Qf8+ {[%clk 0:00:00.6]} 51... Kg5 {[%clk 0:01:33]} 0-1

[Event "Live Chess"]
[Site "Chess.com"]
[Date "2011.01.27"]
[Round "-"]
[White "hipposcottimus"]
[Black "mushfiq_aliyev"]
[Result "1-0"]
[CurrentPosition "8/pbN3R1/1p3B1p/7R/8/7k/PP5r/5K2 b - -"]
[Timezone "UTC"]
[ECO "C55"]
[ECOUrl "https://www.chess.com/openings/Italian-Game-Anti-Fried-Liver-Defense"]
[UTCDate "2011.01.27"]
[UTCTime "23:09:49"]
[WhiteElo "1435"]
[BlackElo "1209"]
[TimeControl "600"]
[Termination "hipposcottimus won by checkmate"]
[StartTime "23:09:49"]
[EndDate "2011.01.27"]
[EndTime "23:24:30"]
[Link "https://www.chess.com/game/live/92071417"]

1. e4 {[%clk 0:10:00]} 1... e5 {[%clk 0:10:00]} 2. Nf3 {[%clk 0:09:57]} 2... Nc6 {[%clk 0:09:55]} 3. Bc4 {[%clk 0:09:54.5]} 3... h6 {[%clk 0:09:52.5]} 4. d4 {[%clk 0:09:51.4]} 4... exd4 {[%clk 0:09:46.6]} 5. Nxd4 {[%clk 0:09:50.9]} 5... Ne5 {[%clk 0:09:33.1]} 6. Bb3 {[%clk 0:09:09.2]} 6... Bc5 {[%clk 0:09:17.6]} 7. O-O {[%clk 0:08:56.5]} 7... Bxd4 {[%clk 0:09:01.8]} 8. Qxd4 {[%clk 0:08:56.1]} 8... d6 {[%clk 0:08:59.1]} 9. f4 {[%clk 0:08:48.4]} 9... c5 {[%clk 0:08:29.5]} 10. Bxf7+ {[%clk 0:08:26.1]} 10... Nxf7 {[%clk 0:08:23.7]} 11. Qxg7 {[%clk 0:08:22.1]} 11... Qf6 {[%clk 0:08:04.5]} 12. Qg3 {[%clk 0:08:02.2]} 12... Ne7 {[%clk 0:07:17.2]} 13. Nc3 {[%clk 0:07:52.9]} 13... Qd4+ {[%clk 0:07:06.3]} 14. Be3 {[%clk 0:07:46.7]} 14... Qf6 {[%clk 0:06:36.2]} 15. e5 {[%clk 0:06:42.6]} 15... dxe5 {[%clk 0:06:22.9]} 16. Bxc5 {[%clk 0:06:24.3]} 16... Rg8 {[%clk 0:04:48.3]} 17. Bxe7 {[%clk 0:06:18.2]} 17... Rxg3 {[%clk 0:04:33.1]} 18. Bxf6 {[%clk 0:06:15.5]} 18... exf4 {[%clk 0:04:13]} 19. Rxf4 {[%clk 0:06:06.7]} 19... Re3 {[%clk 0:04:02.3]} 20. Nd5 {[%clk 0:05:52.9]} 20... Re2 {[%clk 0:03:27.6]} 21. Nc7+ {[%clk 0:05:46.3]} 21... Kf8 {[%clk 0:03:11.6]} 22. Nxa8 {[%clk 0:05:25]} 22... Rxc2 {[%clk 0:03:06.3]} 23. Rd1 {[%clk 0:05:24.6]} 23... Ng5 {[%clk 0:02:34]} 24. Bxg5+ {[%clk 0:05:20.9]} 24... Kg7 {[%clk 0:02:31.2]} 25. Bf6+ {[%clk 0:05:11.5]} 25... Kg6 {[%clk 0:02:26.1]} 26. Bc3 {[%clk 0:05:01.1]} 26... b6 {[%clk 0:02:19.3]} 27. Nc7 {[%clk 0:04:58.4]} 27... Bb7 {[%clk 0:02:15.3]} 28. Rd7 {[%clk 0:04:36.4]} 28... Rxg2+ {[%clk 0:02:05.7]} 29. Kf1 {[%clk 0:04:33.8]} 29... Rxh2 {[%clk 0:01:51.2]} 30. Rg7+ {[%clk 0:04:27.7]} 30... Kh5 {[%clk 0:01:42.3]} 31. Rf5+ {[%clk 0:04:16.4]} 31... Kh4 {[%clk 0:01:37.9]} 32. Bf6+ {[%clk 0:04:08.5]} 32... Kh3 {[%clk 0:01:30.2]} 33. Rh5# {[%clk 0:04:05.9]} 1-0

[Event "Live Chess"]
[Site "Chess.com"]
[Date "2011.01.27"]
[Round "-"]
[White "Nokasparov"]
[Black "hipposcottimus"]
[Result "0-1"]
[CurrentPosition "5rk1/6p1/pbp2q1p/3p2N1/6QK/3P2P1/P6P/8 w - -"]
[Timezone "UTC"]
[ECO "C65"]
[ECOUrl "https://www.chess.com/openings/Ruy-Lopez-Opening-Berlin-Defense-4.d3-d6"]
[UTCDate "2011.01.27"]
[UTCTime "23:00:51"]
[WhiteElo "1237"]
[BlackElo "1430"]
[TimeControl "600"]
[Termination "hipposcottimus won by resignation"]
[StartTime "23:00:51"]
[EndDate "2011.01.27"]
[EndTime "23:09:23"]
[Link "https://www.chess.com/game/live/92068939"]

1. e4 {[%clk 0:10:00]} 1... e5 {[%clk 0:10:00]} 2. Nf3 {[%clk 0:09:57.2]} 2... Nc6 {[%clk 0:09:59]} 3. Bb5 {[%clk 0:09:52.6]} 3... Nf6 {[%clk 0:09:56.9]} 4. d3 {[%clk 0:09:49]} 4... d6 {[%clk 0:09:49.7]} 5. Nc3 {[%clk 0:09:39.4]} 5... a6 {[%clk 0:09:45.5]} 6. Bxc6+ {[%clk 0:09:29.5]} 6... bxc6 {[%clk 0:09:44.1]} 7. Bg5 {[%clk 0:09:24.5]} 7... Be7 {[%clk 0:09:43.4]} 8. Bxf6 {[%clk 0:09:21.8]} 8... Bxf6 {[%clk 0:09:42.6]} 9. O-O {[%clk 0:09:20.5]} 9... O-O {[%clk 0:09:41.8]} 10. d4 {[%clk 0:09:15.7]} 10... d5 {[%clk 0:09:35.3]} 11. exd5 {[%clk 0:09:10.5]} 11... e4 {[%clk 0:09:27.7]} 12. Ne5 {[%clk 0:08:54.3]} 12... cxd5 {[%clk 0:09:25.8]} 13. Nc6 {[%clk 0:08:43.3]} 13... Qd6 {[%clk 0:09:10.5]} 14. Ne5 {[%clk 0:08:32.6]} 14... Bd8 {[%clk 0:09:04.9]} 15. f3 {[%clk 0:08:23.9]} 15... f6 {[%clk 0:09:01.7]} 16. Ng4 {[%clk 0:08:10.9]} 16... c6 {[%clk 0:08:55.9]} 17. fxe4 {[%clk 0:08:09.6]} 17... Bxg4 {[%clk 0:08:41]} 18. Qxg4 {[%clk 0:08:05.6]} 18... Bc7 {[%clk 0:08:38.1]} 19. e5 {[%clk 0:07:43.1]} 19... fxe5 {[%clk 0:08:37.7]} 20. Rxf8+ {[%clk 0:07:38.1]} 20... Rxf8 {[%clk 0:08:33.9]} 21. g3 {[%clk 0:07:31.6]} 21... Bb6 {[%clk 0:08:15.8]} 22. Ne2 {[%clk 0:06:54.9]} 22... Qf6 {[%clk 0:08:01.2]} 23. Kg2 {[%clk 0:06:40.6]} 23... exd4 {[%clk 0:07:43.5]} 24. Nf4 {[%clk 0:06:17.8]} 24... d3 {[%clk 0:07:09.1]} 25. cxd3 {[%clk 0:06:05.6]} 25... Qxb2+ {[%clk 0:07:04.8]} 26. Kh3 {[%clk 0:05:38.1]} 26... Qxa1 {[%clk 0:07:02.6]} 27. Ne6 {[%clk 0:05:32.2]} 27... Qf1+ {[%clk 0:06:38.3]} 28. Kh4 {[%clk 0:05:24.9]} 28... Qf6+ {[%clk 0:06:38]} 29. Ng5 {[%clk 0:05:07.5]} 29... h6 {[%clk 0:06:35.2]} 0-1

[Event "Live Chess"]
[Site "Chess.com"]
[Date "2011.01.27"]
[Round "-"]
[White "hipposcottimus"]
[Black "Yuselfo"]
[Result "1-0"]
[CurrentPosition "8/1p6/p4kR1/P1p2n1P/2Pp4/3K4/5P2/8 b - -"]
[Timezone "UTC"]
[ECO "C55"]
[ECOUrl "https://www.chess.com/openings/Italian-Game-Anti-Fried-Liver-Defense"]
[UTCDate "2011.01.27"]
[UTCTime "15:15:06"]
[WhiteElo "1430"]
[BlackElo "1524"]
[TimeControl "600"]
[Termination "hipposcottimus won on time"]
[StartTime "15:15:06"]
[EndDate "2011.01.27"]
[EndTime "15:35:03"]
[Link "https://www.chess.com/game/live/91932392"]

1. e4 {[%clk 0:10:00]} 1... e5 {[%clk 0:10:00]} 2. Nf3 {[%clk 0:09:58.5]} 2... Nc6 {[%clk 0:09:58.2]} 3. Bc4 {[%clk 0:09:57.9]} 3... h6 {[%clk 0:09:55.5]} 4. d4 {[%clk 0:09:56.2]} 4... d6 {[%clk 0:09:46.9]} 5. Be3 {[%clk 0:09:37]} 5... f5 {[%clk 0:09:23.4]} 6. d5 {[%clk 0:09:24.9]} 6... Nce7 {[%clk 0:09:12.3]} 7. Nc3 {[%clk 0:09:01.9]} 7... f4 {[%clk 0:09:07.7]} 8. Bd2 {[%clk 0:08:57]} 8... Nf6 {[%clk 0:09:06.4]} 9. Qe2 {[%clk 0:08:51.3]} 9... Bd7 {[%clk 0:09:01.7]} 10. Bb5 {[%clk 0:08:48]} 10... a6 {[%clk 0:08:54.6]} 11. Bxd7+ {[%clk 0:08:30.6]} 11... Nxd7 {[%clk 0:08:53.3]} 12. g3 {[%clk 0:08:27.6]} 12... g5 {[%clk 0:08:33.8]} 13. gxf4 {[%clk 0:08:21.7]} 13... exf4 {[%clk 0:08:24.8]} 14. e5 {[%clk 0:08:08.4]} 14... Nf5 {[%clk 0:08:08.3]} 15. e6 {[%clk 0:08:01.1]} 15... Nf6 {[%clk 0:07:56.6]} 16. Qd3 {[%clk 0:07:50.1]} 16... Ne7 {[%clk 0:07:30]} 17. Qd4 {[%clk 0:07:07]} 17... Bg7 {[%clk 0:07:05.4]} 18. Bxf4 {[%clk 0:07:05]} 18... Nf5 {[%clk 0:06:44.6]} 19. Qd2 {[%clk 0:06:55]} 19... gxf4 {[%clk 0:06:28.5]} 20. Qxf4 {[%clk 0:06:49.2]} 20... Ne7 {[%clk 0:06:15.2]} 21. O-O-O {[%clk 0:06:34.5]} 21... Rf8 {[%clk 0:06:11.3]} 22. Rhg1 {[%clk 0:05:41.6]} 22... Nfxd5 {[%clk 0:05:54.7]} 23. Nxd5 {[%clk 0:05:13.3]} 23... Nxd5 {[%clk 0:05:53.2]} 24. Qg4 {[%clk 0:04:46.1]} 24... Bxb2+ {[%clk 0:05:22.8]} 25. Kxb2 {[%clk 0:04:33]} 25... Qf6+ {[%clk 0:05:21.5]} 26. Kc1 {[%clk 0:04:25.7]} 26... Qf4+ {[%clk 0:05:11]} 27. Qxf4 {[%clk 0:04:21.6]} 27... Nxf4 {[%clk 0:05:10]} 28. Rde1 {[%clk 0:04:07.4]} 28... Ke7 {[%clk 0:04:12.4]} 29. Nh4 {[%clk 0:03:39.7]} 29... Rg8 {[%clk 0:03:32.7]} 30. Nf5+ {[%clk 0:02:44.2]} 30... Kf6 {[%clk 0:03:23.2]} 31. Rxg8 {[%clk 0:02:42.8]} 31... Rxg8 {[%clk 0:03:15.5]} 32. Nxh6 {[%clk 0:02:41.4]} 32... Rg7 {[%clk 0:02:40.6]} 33. Ng4+ {[%clk 0:02:29.5]} 33... Ke7 {[%clk 0:02:15.3]} 34. Ne3 {[%clk 0:02:12.2]} 34... Nxe6 {[%clk 0:01:53.5]} 35. Nf5+ {[%clk 0:02:10.3]} 35... Kf6 {[%clk 0:01:46.2]} 36. Nxg7 {[%clk 0:02:09.2]} 36... Nxg7 {[%clk 0:01:45.1]} 37. Kd2 {[%clk 0:01:53.1]} 37... Nf5 {[%clk 0:01:42.5]} 38. Kd3 {[%clk 0:01:42]} 38... c5 {[%clk 0:01:29.6]} 39. a4 {[%clk 0:01:23.4]} 39... d5 {[%clk 0:01:25.7]} 40. c4 {[%clk 0:01:12.5]} 40... d4 {[%clk 0:01:17.5]} 41. Rb1 {[%clk 0:00:59.4]} 41... Nd6 {[%clk 0:01:13.3]} 42. a5 {[%clk 0:00:48.9]} 42... Kf5 {[%clk 0:00:55.5]} 43. Rg1 {[%clk 0:00:39.9]} 43... Kf6 {[%clk 0:00:44]} 44. h4 {[%clk 0:00:39]} 44... Nf5 {[%clk 0:00:37.8]} 45. h5 {[%clk 0:00:38.1]} 45... Ke5 {[%clk 0:00:11.5]} 46. Rg5 {[%clk 0:00:31.9]} 46... Kf6 {[%clk 0:00:05.5]} 47. Rg6+ {[%clk 0:00:20.8]} 1-0

[Event "Live Chess"]
[Site "Chess.com"]
[Date "2011.01.27"]
[Round "-"]
[White "khongsochet"]
[Black "hipposcottimus"]
[Result "1-0"]
[CurrentPosition "5r2/ppp5/8/2Q5/2k1B3/2P1B3/PP4PP/R4R1K b - -"]
[Timezone "UTC"]
[ECO "C31"]
[ECOUrl "https://www.chess.com/openings/Kings-Gambit-Declined-Falkbeer-Blackburne-Attack"]
[UTCDate "2011.01.27"]
[UTCTime "04:08:06"]
[WhiteElo "1980"]
[BlackElo "1596"]
[TimeControl "60"]
[Termination "khongsochet won by checkmate"]
[StartTime "04:08:06"]
[EndDate "2011.01.27"]
[EndTime "04:09:37"]
[Link "https://www.chess.com/game/live/91789218"]

1. e4 {[%clk 0:01:00]} 1... e5 {[%clk 0:01:00]} 2. f4 {[%clk 0:00:59.2]} 2... d5 {[%clk 0:00:58.7]} 3. Nf3 {[%clk 0:00:58.6]} 3... dxe4 {[%clk 0:00:56.8]} 4. Nxe5 {[%clk 0:00:57.8]} 4... Bd6 {[%clk 0:00:56.4]} 5. Bc4 {[%clk 0:00:56.6]} 5... Bxe5 {[%clk 0:00:54.5]} 6. fxe5 {[%clk 0:00:56.5]} 6... f6 {[%clk 0:00:53.7]} 7. O-O {[%clk 0:00:53]} 7... fxe5 {[%clk 0:00:52.5]} 8. Qh5+ {[%clk 0:00:52.1]} 8... g6 {[%clk 0:00:51.4]} 9. Qxe5+ {[%clk 0:00:51.2]} 9... Ne7 {[%clk 0:00:51]} 10. Qxh8+ {[%clk 0:00:49.6]} 10... Kd7 {[%clk 0:00:48.7]} 11. Qd4+ {[%clk 0:00:48.2]} 11... Ke8 {[%clk 0:00:44.6]} 12. Bf7+ {[%clk 0:00:46.9]} 12... Kf8 {[%clk 0:00:41.9]} 13. Qh8+ {[%clk 0:00:45]} 13... Ng8 {[%clk 0:00:40.3]} 14. Qxg8+ {[%clk 0:00:42.8]} 14... Ke7 {[%clk 0:00:40]} 15. Qxh7 {[%clk 0:00:40.4]} 15... Qd4+ {[%clk 0:00:35.4]} 16. Kh1 {[%clk 0:00:39.1]} 16... Be6 {[%clk 0:00:34.3]} 17. Bxg6+ {[%clk 0:00:37]} 17... Kd6 {[%clk 0:00:33]} 18. Nc3 {[%clk 0:00:35]} 18... Nc6 {[%clk 0:00:31.6]} 19. Nxe4+ {[%clk 0:00:33.9]} 19... Qxe4 {[%clk 0:00:29.9]} 20. Bxe4 {[%clk 0:00:32.6]} 20... Ne5 {[%clk 0:00:29.7]} 21. d4 {[%clk 0:00:30.7]} 21... Bf5 {[%clk 0:00:29.4]} 22. dxe5+ {[%clk 0:00:28.9]} 22... Kxe5 {[%clk 0:00:29.2]} 23. Qxf5+ {[%clk 0:00:28.2]} 23... Kd4 {[%clk 0:00:27.1]} 24. c3+ {[%clk 0:00:26.6]} 24... Kc4 {[%clk 0:00:24.5]} 25. Be3 {[%clk 0:00:23.9]} 25... Rf8 {[%clk 0:00:20.8]} 26. Qc5# {[%clk 0:00:21.6]} 1-0

[Event "Live Chess"]
[Site "Chess.com"]
[Date "2011.01.27"]
[Round "-"]
[White "hipposcottimus"]
[Black "khongsochet"]
[Result "1-0"]
[CurrentPosition "8/8/6Q1/3P3p/7k/6p1/P4R1P/R6K b - -"]
[Timezone "UTC"]
[ECO "C41"]
[ECOUrl "https://www.chess.com/openings/Philidor-Defense"]
[UTCDate "2011.01.27"]
[UTCTime "04:05:06"]
[WhiteElo "1596"]
[BlackElo "1980"]
[TimeControl "60"]
[Termination "hipposcottimus won on time"]
[StartTime "04:05:06"]
[EndDate "2011.01.27"]
[EndTime "04:07:28"]
[Link "https://www.chess.com/game/live/91788566"]

1. e4 {[%clk 0:01:00]} 1... d6 {[%clk 0:01:00]} 2. Nf3 {[%clk 0:00:59.6]} 2... e5 {[%clk 0:00:59.9]} 3. d4 {[%clk 0:00:59.3]} 3... Nc6 {[%clk 0:00:58.7]} 4. Bb5 {[%clk 0:00:56.2]} 4... Bd7 {[%clk 0:00:57.2]} 5. d5 {[%clk 0:00:54.3]} 5... Nce7 {[%clk 0:00:56.5]} 6. Bc4 {[%clk 0:00:54]} 6... f5 {[%clk 0:00:55.3]} 7. Bb3 {[%clk 0:00:53.7]} 7... fxe4 {[%clk 0:00:53.8]} 8. Ng5 {[%clk 0:00:53.5]} 8... Ng6 {[%clk 0:00:52.4]} 9. Nxe4 {[%clk 0:00:52.4]} 9... Nf6 {[%clk 0:00:50.1]} 10. Bg5 {[%clk 0:00:47.3]} 10... Be7 {[%clk 0:00:47.2]} 11. Bxf6 {[%clk 0:00:46.3]} 11... Bxf6 {[%clk 0:00:46.1]} 12. O-O {[%clk 0:00:46]} 12... O-O {[%clk 0:00:45.1]} 13. Qh5 {[%clk 0:00:42.9]} 13... Kh8 {[%clk 0:00:41.8]} 14. Nbd2 {[%clk 0:00:39.4]} 14... Nf4 {[%clk 0:00:40.6]} 15. Qf3 {[%clk 0:00:34.5]} 15... a5 {[%clk 0:00:35.3]} 16. c4 {[%clk 0:00:32.5]} 16... a4 {[%clk 0:00:34.1]} 17. Bc2 {[%clk 0:00:32]} 17... b5 {[%clk 0:00:32.7]} 18. b3 {[%clk 0:00:30.7]} 18... axb3 {[%clk 0:00:30.8]} 19. Bxb3 {[%clk 0:00:30.5]} 19... bxc4 {[%clk 0:00:29.6]} 20. Bxc4 {[%clk 0:00:30.2]} 20... Ng6 {[%clk 0:00:24.2]} 21. Bb3 {[%clk 0:00:29.5]} 21... Ne7 {[%clk 0:00:20.1]} 22. Bc2 {[%clk 0:00:28.8]} 22... Nf5 {[%clk 0:00:18.4]} 23. Nxf6 {[%clk 0:00:25.4]} 23... Rxf6 {[%clk 0:00:16.2]} 24. Qe4 {[%clk 0:00:25]} 24... g6 {[%clk 0:00:13.4]} 25. g4 {[%clk 0:00:24.3]} 25... Nd4 {[%clk 0:00:12.4]} 26. g5 {[%clk 0:00:20.3]} 26... Rf8 {[%clk 0:00:09.3]} 27. Bd3 {[%clk 0:00:18.9]} 27... Bf5 {[%clk 0:00:08.4]} 28. Qe3 {[%clk 0:00:17.9]} 28... Bxd3 {[%clk 0:00:08]} 29. Qxd3 {[%clk 0:00:17.6]} 29... Nf3+ {[%clk 0:00:07.9]} 30. Nxf3 {[%clk 0:00:17]} 30... e4 {[%clk 0:00:07.8]} 31. Qxe4 {[%clk 0:00:16.1]} 31... Ra4 {[%clk 0:00:07.1]} 32. Qxa4 {[%clk 0:00:14.5]} 32... Rxf3 {[%clk 0:00:06.7]} 33. Qd4+ {[%clk 0:00:13.6]} 33... Kg8 {[%clk 0:00:03.9]} 34. Qe4 {[%clk 0:00:10.2]} 34... Qxg5+ {[%clk 0:00:03.8]} 35. Kh1 {[%clk 0:00:08.3]} 35... Rf4 {[%clk 0:00:03.7]} 36. Qg2 {[%clk 0:00:06.7]} 36... Kg7 {[%clk 0:00:03.6]} 37. Qxg5 {[%clk 0:00:05.6]} 37... Rxf2 {[%clk 0:00:03.5]} 38. Qe7+ {[%clk 0:00:04.9]} 38... Kh6 {[%clk 0:00:02.5]} 39. Qxc7 {[%clk 0:00:04.6]} 39... Kh5 {[%clk 0:00:02.4]} 40. Rxf2 {[%clk 0:00:03.4]} 40... g5 {[%clk 0:00:01.8]} 41. Qxd6 {[%clk 0:00:03.1]} 41... g4 {[%clk 0:00:01.2]} 42. Qf8 {[%clk 0:00:02.7]} 42... Kh4 {[%clk 0:00:01.1]} 43. Qf7 {[%clk 0:00:02.3]} 43... h5 {[%clk 0:00:01]} 44. Qh7 {[%clk 0:00:02]} 44... g3 {[%clk 0:00:00.5]} 45. Qg6 {[%clk 0:00:00.5]} 1-0

[Event "Live Chess"]
[Site "Chess.com"]
[Date "2011.01.27"]
[Round "-"]
[White "hipposcottimus"]
[Black "DarkAge86"]
[Result "1-0"]
[CurrentPosition "3r1k1r/p3nQbp/1p1p2p1/1B2q3/4b3/8/PP5P/R3KR2 b Q -"]
[Timezone "UTC"]
[ECO "C00"]
[ECOUrl "https://www.chess.com/openings/French-Defense-Normal-Variation"]
[UTCDate "2011.01.27"]
[UTCTime "04:02:50"]
[WhiteElo "1596"]
[BlackElo "1453"]
[TimeControl "60"]
[Termination "hipposcottimus won by checkmate"]
[StartTime "04:02:50"]
[EndDate "2011.01.27"]
[EndTime "04:04:19"]
[Link "https://www.chess.com/game/live/91788156"]

1. e4 {[%clk 0:01:00]} 1... e6 {[%clk 0:01:00]} 2. d4 {[%clk 0:00:59.7]} 2... g6 {[%clk 0:00:59.2]} 3. c4 {[%clk 0:00:59]} 3... Bg7 {[%clk 0:00:58.7]} 4. e5 {[%clk 0:00:58.8]} 4... d6 {[%clk 0:00:57.1]} 5. f4 {[%clk 0:00:58.1]} 5... dxe5 {[%clk 0:00:55.3]} 6. fxe5 {[%clk 0:00:57.8]} 6... Nc6 {[%clk 0:00:54.5]} 7. Nf3 {[%clk 0:00:56.9]} 7... b6 {[%clk 0:00:53.2]} 8. Be3 {[%clk 0:00:56.3]} 8... Bb7 {[%clk 0:00:52.7]} 9. Be2 {[%clk 0:00:55.6]} 9... Qe7 {[%clk 0:00:52.3]} 10. Nc3 {[%clk 0:00:54.8]} 10... Rd8 {[%clk 0:00:51.7]} 11. d5 {[%clk 0:00:53.4]} 11... exd5 {[%clk 0:00:50.1]} 12. cxd5 {[%clk 0:00:53.1]} 12... Nxe5 {[%clk 0:00:48.9]} 13. Bg5 {[%clk 0:00:48.6]} 13... Nxf3+ {[%clk 0:00:44.1]} 14. gxf3 {[%clk 0:00:48.3]} 14... Qxg5 {[%clk 0:00:41.6]} 15. Bb5+ {[%clk 0:00:46]} 15... Kf8 {[%clk 0:00:36.7]} 16. Qe2 {[%clk 0:00:44.3]} 16... Ne7 {[%clk 0:00:32.1]} 17. Ne4 {[%clk 0:00:37.3]} 17... Qe5 {[%clk 0:00:27.8]} 18. d6 {[%clk 0:00:31.1]} 18... cxd6 {[%clk 0:00:26.3]} 19. f4 {[%clk 0:00:30.8]} 19... Qxf4 {[%clk 0:00:22.7]} 20. Rf1 {[%clk 0:00:26.6]} 20... Qe5 {[%clk 0:00:21.8]} 21. Qf3 {[%clk 0:00:24.8]} 21... Bxe4 {[%clk 0:00:19.1]} 22. Qxf7# {[%clk 0:00:23.3]} 1-0